bitfinex/quotes_ETHUSD_20220226
["timestamp","ask_amount","ask_price","bid_price","bid_amount"]
[1645860716561,0.00438185,2779.7,2779.6,0.519]
[1645860716823,0.00438185,2779.7,2779.6,10.5097]
[1645860717220,2.43310868,2780.1,2779.6,10.5097]
[1645860717422,0.00438193,2779.8,2779.6,10.5097]
[1645860718425,2.43310868,2780.1,2779.6,10.5097]
[1645860718624,0.00438189,2779.8,2779.6,10.5097]
[1645860719627,2.43310868,2780.1,2780.0,1.20614806]
[1645860719828,3.95322436,2780.1,2780.0,1.50614806]
[1645860720229,3.90322436,2780.1,2780.0,1.50614806]
[1645860720665,3.90322436,2780.1,2780.0,0.3]
[1645860721168,3.90322436,2780.1,2779.6,9.6362]
[1645860721365,1.52011568,2780.0,2779.6,9.6362]
[1645860721865,1.52011568,2780.0,2779.9,1.31219005]
[1645860722269,1.52011568,2780.0,2779.9,1.61219005]
[1645860723068,2.38310868,2780.1,2779.9,1.61219005]
[1645860723467,2.38749366,2780.1,2779.9,1.61219005]
[1645860724297,2.38749366,2780.1,2779.9,2.14857493]
[1645860724495,2.38310868,2780.1,2779.9,2.14857493]
[1645860724699,2.38749351,2780.1,2779.9,0.83638488]
[1645860725498,2.38310868,2780.1,2779.9,0.83638488]
[1645860725999,2.38749,2780.1,2779.9,0.83638488]
[1645860726503,0.00402292,2780.6,2780.1,7.0]
[1645860726702,0.00402292,2780.6,2780.2,0.519]
[1645860726902,1.51898843,2780.8,2780.2,0.819]
[1645860727305,1.51898843,2780.7,2780.2,0.819]
[1645860727501,1.51898843,2780.6,2780.3,1.13357967]
[1645860727701,0.00402292,2781.2,2780.3,1.13357967]
[1645860727901,1.50986369,2781.3,2780.3,2.33427967]
[1645860728165,1.50986369,2781.2,2780.3,2.33638131]
[1645860728367,1.50986369,2781.1,2780.3,2.33638131]
[1645860728563,1.50986369,2781.0,2780.3,2.33638131]
[1645860728764,1.50986369,2780.9,2780.3,2.33638131]
[1645860728964,1.50986369,2780.8,2780.3,1.13568131]
[1645860729164,0.00402292,2781.3,2780.3,1.13357967]
[1645860729372,0.67677073,2781.2,2780.0,0.00222709]
[1645860729567,0.00468086,2780.7,2780.4,0.00468147]
[1645860729766,0.00468086,2780.7,2779.9,0.53638488]
[1645860729767,0.00471191,2780.2,2779.9,0.53638488]
[1645860730968,0.00471191,2780.2,2779.9,4.03638488]
[1645860731169,0.00471191,2780.2,2779.9,4.55538488]
[1645860731368,0.00471191,2780.2,2779.9,5.55538488]
[1645860731805,0.00471191,2780.2,2779.9,5.55755952]
[1645860732005,0.00471191,2780.2,2779.9,2.35755952]
[1645860732207,0.00471191,2780.2,2779.9,1.35755952]
[1645860732613,0.00471191,2780.2,2779.9,2.25675912]
[1645860732811,0.00471191,2780.2,2779.9,1.35538488]
[1645860733010,0.00471191,2780.2,2779.9,1.35755952]
[1645860734011,0.00471191,2780.2,2779.9,1.35538488]
[1645860734214,0.00471191,2780.2,2779.9,1.36013932]
[1645860734512,0.00471191,2780.2,2780.0,0.02243962]
[1645860734713,0.00471191,2780.2,2780.1,0.819]
[1645860738362,0.00471191,2780.2,2780.0,1.48879274]
[1645860738563,0.00471191,2780.2,2780.0,1.18879274]
[1645860738765,0.00471191,2780.2,2780.1,8.8159]
[1645860739398,0.00471191,2780.2,2780.1,7.2975]
[1645860739602,0.00471191,2780.2,2779.1,1.25]
[1645860739802,16.94,2780.1,2779.1,1.25]
[1645860740000,0.1439,2780.0,2779.1,1.25]
[1645860742601,0.1439,2780.0,2779.4,0.00498045]
[1645860742803,1.1439,2780.0,2779.4,0.00498045]
[1645860743464,0.1439,2780.0,2779.4,0.00498045]
[1645860743664,0.1439,2780.0,2779.1,0.25]
[1645860743864,0.1439,2780.0,2779.6,0.00498032]
[1645860744066,1.1439,2780.0,2779.6,0.00498032]
[1645860744966,1.1439,2780.0,2779.7,0.00498023]
[1645860745568,1.0,2779.9,2779.7,0.00498023]
[1645860745967,1.0,2779.9,2779.1,0.25]
[1645860746166,1.0,2779.9,2779.7,0.00498023]
[1645860747210,1.3596,2779.9,2778.6,2.06276895]
[1645860747407,1.0,2779.9,2779.7,0.00498023]
[1645860747608,0.00471191,2780.2,2779.7,0.00498023]
[1645860747812,1.00471191,2780.2,2779.7,0.00498023]
[1645860748007,0.00471191,2780.2,2779.7,0.00498023]
[1645860748412,0.36431191,2780.2,2779.0,0.25]
[1645860748613,0.00123876,2779.7,2778.6,2.06276895]
[1645860748814,0.00123876,2779.7,2778.6,2.94136895]
[1645860749015,0.00123876,2779.7,2779.1,1.12361968]
[1645860749417,0.00123876,2779.7,2778.6,6.96901562]
[1645860749616,0.00123876,2779.7,2778.6,2.58176895]
[1645860749818,1.50939669,2779.7,2778.6,2.58176895]
[1645860750016,1.50815793,2779.6,2779.3,0.00498058]
[1645860750216,0.00123876,2779.7,2779.3,0.00498058]
[1645860750759,0.00123876,2779.7,2779.0,1.33226337]
[1645860751058,0.00123876,2779.7,2779.4,0.00498049]
[1645860752058,0.00123876,2779.7,2778.6,2.58176895]
[1645860752256,0.00123876,2779.7,2779.4,0.00498045]
[1645860753261,0.00123876,2779.7,2778.6,2.06276895]
[1645860753459,0.00123876,2779.7,2779.4,0.00498045]
[1645860754501,0.00123876,2779.7,2778.6,3.30051296]
[1645860754701,0.03212847,2779.7,2779.4,0.00498045]
[1645860754902,1.5079798,2779.6,2779.4,0.00498045]
[1645860755304,0.00503518,2779.3,2778.6,1.76276895]
[1645860757403,0.00503518,2779.3,2778.6,2.06276895]
[1645860757912,1.69267728,2779.9,2778.6,2.06276895]
[1645860757913,0.67456037,2780.9,2779.2,6.98352153]
[1645860758172,2.81959807,2781.6,2779.2,6.98352153]
[1645860758173,0.67456037,2781.5,2780.8,0.39552489]
[1645860758369,8.34935803,2781.8,2781.3,0.39552489]
[1645860758572,7.45,2781.8,2781.6,0.39552489]
[1645860758770,10.95,2781.8,2781.6,0.39552489]
[1645860758967,7.45,2781.8,2781.4,0.39552489]
[1645860759166,7.45,2781.8,2781.2,1.65037578]
[1645860759368,7.45,2781.8,2781.4,0.69552489]
[1645860759567,7.45,2781.8,2781.4,0.3]
[1645860759767,7.45,2781.8,2781.3,7.4904]
[1645860760168,7.45,2781.8,2781.3,7.88592489]
[1645860760566,7.45,2781.8,2781.3,9.28923102]
[1645860760969,7.45,2781.8,2781.3,7.88592489]
[1645860761569,7.45,2781.8,2781.3,7.4904]
[1645860763102,0.00497456,2781.7,2781.3,7.4904]
[1645860763601,0.04035806,2781.6,2781.3,7.88592489]
[1645860763806,0.04035806,2781.6,2781.3,7.4904]
[1645860764405,0.0453327,2781.6,2781.3,7.4904]
[1645860764603,0.0453327,2781.6,2781.5,0.02602881]
[1645860765003,0.0453327,2781.6,2781.5,7.21642881]
[1645860765306,0.04035806,2781.6,2781.5,7.6119537]
[1645860765764,0.04035806,2781.6,2781.5,7.21642881]
[1645860769068,0.04035806,2781.6,2781.5,7.1904]
[1645860770506,0.04035806,2781.6,2781.5,5.64973428]
[1645860770705,0.04035806,2781.6,2781.5,5.51253434]
[1645860775256,0.04035806,2781.6,2781.5,3.89143642]
[1645860776901,10.98035806,2781.6,2781.5,1.41184892]
[1645860777100,17.94,2781.5,2780.6,0.25]
[1645860777300,23.54447511,2781.5,2780.2,0.53932489]
[1645860777498,10.94,2781.3,2780.2,0.39552489]
[1645860777698,0.00398167,2781.2,2780.2,0.39552489]
[1645860777897,0.00398167,2781.2,2780.3,0.1438]
[1645860778102,0.00398167,2781.2,2780.2,0.39552489]
[1645860778103,10.94,2781.1,2780.2,0.39552489]
[1645860778301,1.29570507,2781.0,2780.2,0.39552489]
[1645860778705,0.00497533,2780.8,2780.2,0.39552489]
[1645860779104,1.29162095,2780.7,2780.3,0.84157]
[1645860779311,0.02388,2781.2,2780.7,7.0]
[1645860779504,0.02388,2781.2,2781.1,0.39552489]
[1645860779505,0.01989833,2781.2,2781.1,0.39552489]
[1645860779802,0.00398167,2781.8,2781.1,1.21452489]
[1645860780001,0.00398167,2782.2,2781.4,0.39552489]
[1645860780202,0.00398167,2782.2,2781.4,0.3]
[1645860780644,0.00398167,2782.2,2781.2,0.1438]
[1645860780645,0.00398167,2782.2,2781.5,0.39552489]
[1645860780844,0.00398167,2782.2,2781.5,0.69552489]
[1645860781043,0.00398167,2782.2,2781.5,0.3]
[1645860781244,0.00398167,2782.2,2781.5,1.69753798]
[1645860782346,0.00497083,2781.7,2781.5,1.69753798]
[1645860782547,0.00497083,2781.7,2781.5,2.09306287]
[1645860783350,0.00398167,2782.2,2781.5,2.09306287]
[1645860783550,0.00497083,2781.7,2781.5,1.69753798]
[1645860784506,0.00398167,2782.2,2781.5,1.69753798]
[1645860784705,0.00497083,2781.7,2781.5,1.69753798]
[1645860785709,0.00398167,2782.2,2781.5,1.69753798]
[1645860785907,0.00497083,2781.7,2781.5,1.69753798]
[1645860786909,0.00398167,2782.2,2781.5,1.69753798]
[1645860787112,0.00497083,2781.7,2781.5,1.69753798]
[1645860788177,0.00398167,2782.2,2781.5,1.69753798]
[1645860788379,0.00497083,2781.7,2781.5,1.69753798]
[1645860789380,0.00398167,2782.2,2781.5,1.69753798]
[1645860789580,0.00497083,2781.7,2781.5,0.3]
[1645860789786,0.00497083,2781.7,2781.1,1.1772]
[1645860789980,0.00497083,2781.7,2781.5,0.02110297]
[1645860790584,0.01634915,2782.0,2781.5,0.02110297]
[1645860790785,0.00497083,2781.7,2781.5,0.02110297]
[1645860791683,0.16014915,2782.0,2781.5,0.02110297]
[1645860791684,11.0838,2781.9,2781.5,0.02110297]
[1645860791904,0.00497083,2781.7,2781.5,0.02110297]
[1645860792802,11.0838,2781.9,2781.5,0.02110297]
[1645860793207,0.00497083,2781.7,2781.5,0.02110297]
[1645860794111,0.1438,2781.9,2781.5,0.02110297]
[1645860794307,0.00497079,2781.7,2781.5,0.02110297]
[1645860794510,0.00497079,2781.7,2781.5,0.01956631]
[1645860795308,0.04149491,2781.8,2780.9,0.3]
[1645860795309,0.04149491,2781.8,2780.9,0.1966965]
[1645860795546,0.00497079,2781.7,2781.0,1.1700542]
[1645860795747,0.04589727,2781.7,2781.0,1.1700542]
[1645860795948,0.04035806,2781.6,2781.0,1.1700542]
[1645860796347,0.04035806,2781.6,2780.9,0.1966965]
[1645860796749,0.04035806,2781.6,2780.6,4.499]
[1645860796750,0.00497105,2781.4,2780.6,4.499]
[1645860797151,0.00497105,2781.4,2780.4,4.6211]
[1645860797350,0.00497105,2781.4,2780.4,4.9211]
[1645860797557,7.105e-05,2781.4,2781.2,1.36086873]
[1645860797752,3.71031443,2782.3,2781.3,16.019]
[1645860797951,3.71031443,2782.3,2781.4,0.19088109]
[1645860797952,8.258e-05,2781.5,2781.4,0.19088109]
[1645860798155,8.258e-05,2781.5,2781.4,19.75298109]
[1645860798555,8.258e-05,2781.5,2781.4,21.06057373]
[1645860798755,3.71031443,2782.3,2781.6,0.3596]
[1645860798956,3.71031443,2782.3,2782.0,1.2581287]
[1645860799159,3.71031443,2782.3,2782.2,0.3596]
[1645860799407,3.71031443,2782.3,2782.2,0.8786]
[1645860799608,3.71031443,2782.3,2782.2,1.1786]
[1645860800309,0.95191443,2782.3,2782.2,1.1786]
[1645860800608,0.95191443,2782.3,2782.2,1.44655739]
[1645860801309,0.014,2783.2,2782.2,1.44655739]
[1645860801310,0.014,2783.2,2782.4,0.3596]
[1645860801512,1.23094451,2783.1,2782.6,0.3596]
[1645860801710,1.23094451,2783.1,2782.8,0.3596]
[1645860801908,1.23094451,2783.1,2782.9,0.519]
[1645860802309,1.23094451,2783.1,2782.9,1.69025342]
[1645860802515,1.23094451,2783.1,2782.8,0.6]
[1645860802714,1.23094451,2783.1,2782.8,0.3]
[1645860802909,1.24494451,2783.2,2782.2,0.56899999]
[1645860803160,1.23094451,2783.1,2782.3,0.26818128]
[1645860804359,1.91735219,2783.2,2782.2,0.89004444]
[1645860804558,1.2349062,2783.1,2782.2,0.89004444]
[1645860804758,1.2349062,2783.1,2782.3,1.32747939]
[1645860805159,1.23094451,2783.1,2782.2,1.89004444]
[1645860805363,1.23094451,2783.1,2782.3,0.26809306]
[1645860805364,0.00396169,2783.0,2782.3,0.26809306]
[1645860805559,1.23094451,2783.1,2782.3,0.26809306]
[1645860806163,1.23094451,2783.1,2782.2,0.89004444]
[1645860806361,0.0049642,2782.8,2782.2,1.90560456]
[1645860806561,1.23094451,2782.7,2782.2,1.90560456]
[1645860806839,1.23094451,2782.7,2782.3,7.1883]
[1645860807035,0.0049642,2782.8,2782.3,7.1883]
[1645860807238,0.01796169,2783.2,2782.3,7.1883]
[1645860807441,1.22947188,2783.1,2782.3,7.1883]
[1645860807646,0.00496437,2782.6,2782.3,7.1883]
[1645860808442,0.01796169,2783.2,2782.3,7.1883]
[1645860808641,1.22945378,2783.1,2782.3,7.1883]
[1645860808844,0.00496441,2782.6,2782.3,7.1883]
[1645860809545,1.22890665,2782.5,2782.3,7.1883]
[1645860809743,1.22890665,2782.5,2782.4,0.01934586]
[1645860810343,12.16890665,2782.5,2782.4,0.01934586]
[1645860810559,1.22890665,2782.5,2782.4,0.01934586]
[1645860811058,12.16890665,2782.6,2782.4,0.01934586]
[1645860811258,1.22890665,2782.5,2782.4,0.01934586]
[1645860813567,1.22890665,2782.9,2782.4,0.01934586]
[1645860813767,0.00496441,2782.6,2782.4,0.01934586]
[1645860813973,1.22890665,2782.5,2782.4,0.01934586]
[1645860814169,1.24145918,2782.5,2782.3,7.1883]
[1645860814401,1.24145918,2782.5,2782.4,0.02096529]
[1645860814801,1.24642364,2782.5,2782.4,0.02096529]
[1645860815405,1.24642364,2782.5,2782.3,5.58878501]
[1645860815605,1.22890665,2782.4,2782.3,5.58878501]
[1645860819954,1.25139573,2782.4,2782.3,5.58878501]
[1645860824326,1.26393071,2782.4,2782.3,5.58878501]
[1645860826358,4.76393071,2782.4,2782.3,3.23574477]
[1645860826659,4.76393071,2782.4,2781.1,1.519]
[1645860826660,10.94,2782.2,2780.7,4.18584066]
[1645860826857,10.94,2781.9,2781.4,0.00465779]
[1645860827057,5.67384573,2782.0,2781.4,0.00465779]
[1645860827058,15.94,2781.7,2781.4,0.00465779]
[1645860827257,12.16890665,2781.6,2781.4,0.00465779]
[1645860827456,1.22890665,2781.5,2781.4,0.00465779]
[1645860827858,1.22890665,2781.5,2780.8,0.29855077]
[1645860828060,1.22890665,2781.4,2780.9,0.29853958]
[1645860828463,10.94,2781.2,2780.9,0.29853958]
[1645860828863,10.94,2781.5,2780.9,0.29853958]
[1645860829060,4.70071231,2781.4,2780.9,0.29853958]
[1645860829322,4.70071231,2781.4,2780.9,0.30319692]
[1645860829323,1.20071231,2781.3,2780.9,0.30319692]
[1645860829524,1.20071231,2781.3,2780.9,0.00465734]
[1645860830125,3.5,2781.2,2780.8,0.29855077]
[1645860830328,1.20055019,2781.1,2780.8,0.29855077]
[1645860830527,6.20055019,2781.1,2781.0,0.00466089]
[1645860830726,5.78875016,2781.1,2781.0,0.00466089]
[1645860830925,16.87255016,2781.1,2781.0,0.00466089]
[1645860831325,16.87255016,2781.1,2780.8,0.29855077]
[1645860831531,15.94,2780.9,2780.8,0.29855077]
[1645860831724,18.49175019,2780.9,2780.8,0.29855077]
[1645860831924,2.36278661,2780.9,2780.8,0.29855077]
[1645860832324,1.20055019,2780.9,2780.8,0.29855077]
[1645860832526,1.1438,2781.0,2780.8,0.29855077]
[1645860832724,1.19878904,2780.9,2780.8,0.29855077]
[1645860833180,12.13878904,2780.9,2780.8,0.29855077]
[1645860833576,16.63878904,2780.9,2780.8,0.29855077]
[1645860833780,15.63878904,2780.9,2780.8,0.29855077]
[1645860833980,1.19878904,2780.9,2780.8,0.29855077]
[1645860834183,0.43939997,2781.1,2780.8,0.29855077]
[1645860834379,0.11082722,2781.1,2780.8,0.29855077]
[1645860835180,0.11082722,2781.1,2780.8,0.30321493]
[1645860836282,0.11082722,2781.1,2780.8,0.29855077]
[1645860836481,0.11082722,2781.1,2780.8,0.30321493]
[1645860837310,0.11082722,2781.1,2780.8,0.29855077]
[1645860837710,0.11082722,2781.1,2780.8,0.30320786]
[1645860838512,0.11082722,2781.1,2780.8,0.29855077]
[1645860838913,0.11082722,2781.1,2780.8,0.30320786]
[1645860839718,0.11082722,2781.1,2780.8,0.29855077]
[1645860840118,0.11082722,2781.1,2780.8,0.30320786]
[1645860840986,0.11082722,2781.1,2780.8,0.29855077]
[1645860841391,0.11082722,2781.1,2780.8,0.30320834]
[1645860842193,0.11082722,2781.1,2780.8,0.29855077]
[1645860842397,0.11082722,2781.1,2780.8,0.30320834]
[1645860843494,0.11082722,2781.1,2780.8,0.29855077]
[1645860843695,0.11082722,2781.1,2780.8,0.30320834]
[1645860844298,0.09461391,2781.1,2780.8,0.30320834]
[1645860844502,0.09461391,2781.1,2780.8,0.29855077]
[1645860844904,0.09461391,2781.1,2780.8,0.3032083]
[1645860845703,0.09461391,2781.1,2780.8,0.29855077]
[1645860848073,3.69461391,2781.1,2780.8,0.29855077]
[1645860848479,4.69461391,2781.1,2780.8,0.30351361]
[1645860848678,4.69461391,2781.1,2780.8,0.30260843]
[1645860849084,1.19799318,2781.0,2780.8,0.30260843]
[1645860849281,1.34179318,2781.0,2780.8,0.30260843]
[1645860849483,1.19799318,2780.9,2780.8,0.29764559]
[1645860849784,1.19805675,2780.9,2780.8,0.30260843]
[1645860849983,1.19805675,2781.0,2780.8,0.30260843]
[1645860850582,1.19805675,2781.0,2780.8,0.29764559]
[1645860850782,1.19805675,2781.0,2780.8,0.30260848]
[1645860851385,4.69805675,2781.0,2780.8,0.30260848]
[1645860851586,1.19805675,2780.9,2780.8,0.30260848]
[1645860851810,1.19805675,2780.9,2780.8,0.29764559]
[1645860852010,1.19805675,2781.0,2780.8,0.29764559]
[1645860852207,1.19805675,2780.9,2780.8,0.29764559]
[1645860852410,1.19805675,2781.0,2780.8,0.29764559]
[1645860853218,1.19805675,2781.0,2780.8,0.30260488]
[1645860854218,1.19805675,2781.0,2780.8,0.29764559]
[1645860854418,1.19805675,2781.0,2780.8,0.30260488]
[1645860855420,1.19805675,2781.0,2780.8,0.29764559]
[1645860855661,1.19805675,2781.0,2780.8,0.30260488]
[1645860855662,12.13805675,2781.0,2780.8,0.30260488]
[1645860855862,1.19805675,2780.9,2780.8,0.30260488]
[1645860856663,1.19805675,2780.9,2780.8,0.29764559]
[1645860857862,4.69805675,2780.9,2780.8,0.29764559]
[1645860858264,2.19805675,2780.9,2780.8,0.29764559]
[1645860858662,1.19805675,2780.9,2780.8,0.29764559]
[1645860859067,4.69805675,2780.9,2780.8,0.29764559]
[1645860859309,5.69805675,2780.9,2780.8,0.29764559]
[1645860859716,16.63805675,2780.9,2780.8,0.29764559]
[1645860859915,21.78185675,2780.9,2780.8,0.29764559]
[1645860860118,21.78185675,2780.9,2780.1,0.25]
[1645860860119,17.44,2780.8,2780.1,0.25]
[1645860860321,17.44,2780.8,2779.4,0.25]
[1645860860322,10.94,2780.2,2779.4,0.25]
[1645860860517,15.63805675,2780.1,2779.3,1.17135128]
[1645860860716,14.44,2780.1,2779.4,0.29264891]
[1645860860914,15.44,2780.1,2779.4,0.29264891]
[1645860861114,1.2036383,2780.0,2779.4,0.29264891]
[1645860861318,14.44,2779.9,2779.4,0.29264891]
[1645860861719,20.44,2779.9,2779.4,0.29264891]
[1645860861918,20.44,2779.9,2779.6,0.00496028]
[1645860862518,20.44,2779.9,2779.1,0.00325128]
[1645860862922,20.44,2779.9,2779.6,0.00496028]
[1645860863165,10.94,2779.7,2779.6,0.00496028]
[1645860863766,0.90009,2779.6,2778.9,0.00325128]
[1645860863965,4.40009,2779.5,2778.9,0.29258004]
[1645860864166,15.34009,2779.5,2779.0,0.29258004]
[1645860864368,15.34009,2779.5,2778.7,0.00325128]
[1645860864566,15.34009,2779.5,2778.7,0.29601808]
[1645860864769,10.94,2779.3,2778.7,0.29601808]
[1645860864967,10.94,2779.1,2778.7,0.29601808]
[1645860865166,10.94,2779.1,2778.5,0.54936494]
[1645860865365,10.94,2779.1,2779.0,0.00495725]
[1645860865767,0.15953937,2779.3,2779.0,0.00495725]
[1645860865768,10.94,2779.2,2779.0,0.00495725]
[1645860866168,10.94,2779.2,2778.4,0.00325128]
[1645860866169,3.5,2779.3,2778.4,0.55287165]
[1645860866468,3.5,2779.3,2779.0,0.00495725]
[1645860866668,4.5,2779.3,2779.0,0.00495725]
[1645860866904,10.94,2779.2,2779.0,0.00495725]
[1645860867102,4.70974705,2779.3,2779.0,0.00495725]
[1645860867305,4.5,2779.3,2778.4,0.00325128]
[1645860867503,4.5,2779.3,2778.4,0.29565931]
[1645860867700,4.5,2779.3,2779.0,0.00495725]
[1645860867908,10.94,2779.2,2779.0,0.00495725]
[1645860868209,4.65085509,2779.3,2779.0,0.00495725]
[1645860868407,4.5,2779.3,2779.0,0.00495725]
[1645860868607,4.5,2779.3,2778.4,0.00325128]
[1645860868808,4.5,2779.3,2779.0,0.0049572]
[1645860869009,0.01238469,2779.1,2779.0,0.0049572]
[1645860869408,14.45238469,2779.1,2779.0,0.0049572]
[1645860869607,10.95238469,2779.1,2779.0,0.0049572]
[1645860869807,10.95238469,2779.1,2778.4,0.00325128]
[1645860870009,14.44,2779.0,2778.5,0.01983213]
[1645860870212,10.94,2779.0,2778.6,0.29246525]
[1645860871049,12.9108792,2779.1,2778.6,0.29246525]
[1645860871258,4.51259469,2779.1,2778.7,0.29742275]
[1645860871453,4.51259469,2779.1,2778.7,0.0049575]
[1645860872056,10.94,2779.0,2778.7,0.0049575]
[1645860872257,10.94,2779.0,2778.4,0.00325128]
[1645860872258,14.44,2779.0,2778.4,0.00325128]
[1645860872458,14.44,2779.0,2778.8,0.00495742]
[1645860872656,10.94,2779.0,2778.8,0.00495742]
[1645860873056,4.51259469,2779.1,2778.8,0.00495742]
[1645860873459,15.45259469,2779.1,2778.4,0.00325128]
[1645860873658,15.45259469,2779.1,2778.8,0.00495737]
[1645860874058,3.5,2779.0,2778.8,0.00495737]
[1645860874310,15.45259469,2779.1,2778.8,0.00495737]
[1645860874500,15.45259469,2779.1,2778.4,0.00325128]
[1645860874902,15.45259469,2779.1,2778.8,0.00495742]
[1645860875307,4.51259469,2779.1,2778.8,0.00495742]
[1645860875509,3.61238469,2779.1,2778.8,0.00495742]
[1645860875708,3.61238469,2779.1,2778.4,0.00325128]
[1645860875907,3.61238469,2779.1,2778.4,1.20778587]
[1645860876114,3.61238469,2779.1,2778.8,0.00495737]
[1645860876907,3.61238469,2779.1,2778.4,0.00325128]
[1645860877409,3.61238469,2779.1,2778.8,0.00495737]
[1645860878260,3.61238469,2779.1,2778.4,1.06858145]
[1645860878461,3.61238469,2779.1,2778.8,0.00495737]
[1645860879060,3.61658682,2779.1,2778.8,0.00495737]
[1645860879460,3.61658682,2779.1,2778.4,0.00325128]
[1645860879660,3.61658682,2779.1,2778.8,0.00495737]
[1645860880663,3.61658682,2779.1,2778.5,1.20923515]
[1645860880862,3.61658682,2779.1,2778.8,0.00495737]
[1645860881169,4.51679682,2779.1,2778.8,0.00495737]
[1645860881381,0.00302926,2778.7,2778.4,0.02308375]
[1645860881565,0.00302926,2778.7,2778.4,0.01983247]
[1645860881843,0.00302926,2778.7,2778.2,1.79284628]
[1645860882029,0.00302926,2778.7,2778.3,0.2924202]
[1645860883229,0.00302926,2778.7,2778.4,0.00495866]
[1645860884334,0.00302926,2778.7,2778.2,0.00325128]
[1645860884335,0.90038,2778.6,2778.2,0.00325128]
[1645860884533,14.44,2778.5,2778.4,0.00495862]
[1645860884731,10.94,2778.5,2778.4,0.00495862]
[1645860884934,14.44,2778.5,2778.4,0.00495862]
[1645860885333,14.44,2778.5,2777.8,2.51143711]
[1645860885552,14.44,2778.5,2777.9,0.2925622]
[1645860885757,14.44,2778.5,2778.3,0.0049587]
[1645860885959,10.94,2778.5,2778.3,0.0049587]
[1645860886159,3.5,2778.4,2778.3,0.0049587]
[1645860886559,10.94,2778.5,2778.0,0.00325128]
[1645860886760,10.94,2778.5,2777.6,0.29577391]
[1645860886959,10.94,2778.5,2778.2,0.00495879]
[1645860887161,4.40038,2778.6,2778.2,0.00495879]
[1645860887561,5.40038,2778.6,2778.2,0.00495879]
[1645860887760,5.40038,2778.6,2777.8,0.02308942]
[1645860887761,5.40038,2778.6,2777.8,0.00325128]
[1645860887965,5.40038,2778.6,2777.8,0.29249552]
[1645860888162,16.34038,2778.6,2777.8,0.2957468]
[1645860888365,16.34038,2778.6,2778.3,0.00495875]
[1645860888967,16.34038,2778.6,2777.8,0.00325128]
[1645860889166,16.34038,2778.6,2777.8,0.2925974]
[1645860889406,0.0202608,2778.5,2778.3,0.0049587]
[1645860890310,0.0202608,2778.5,2778.1,0.06330305]
[1645860890514,0.0202608,2778.5,2778.3,0.00495875]
[1645860891323,0.0202608,2778.5,2778.1,0.06330305]
[1645860891819,0.0202608,2778.5,2778.3,0.00495875]
[1645860892015,0.1641608,2778.5,2778.3,0.00495875]
[1645860892416,10.94,2778.4,2778.3,0.00495875]
[1645860892714,10.94,2778.2,2778.1,0.06330305]
[1645860893775,10.94,2778.2,2777.8,0.06294576]
[1645860893975,10.94,2778.2,2778.0,0.00495896]
[1645860894978,10.94,2778.2,2777.8,0.06294576]
[1645860895277,10.94,2778.2,2778.0,0.00495901]
[1645860895477,14.44,2778.1,2778.0,0.00495901]
[1645860896277,14.44,2778.1,2777.8,0.06294576]
[1645860896480,14.44,2778.1,2777.9,0.00495905]
[1645860896681,14.44,2778.0,2777.9,0.00495905]
[1645860897510,10.94,2778.0,2777.8,0.06294576]
[1645860897713,4.40051,2778.2,2777.8,0.0679049]
[1645860898216,10.94,2778.1,2777.8,0.0679049]
[1645860898617,10.94,2777.9,2777.8,0.06294576]
[1645860898817,3.5,2778.0,2777.8,0.00495914]
[1645860899015,0.01613692,2778.1,2777.8,0.00495914]
[1645860899820,0.01613692,2778.1,2777.5,0.00325128]
[1645860900017,0.01613692,2778.1,2777.8,0.00495914]
[1645860901061,0.01613692,2778.1,2777.5,0.00325128]
[1645860901260,0.01613692,2778.1,2777.8,0.00495914]
[1645860901761,0.01613692,2778.1,2777.9,0.29340753]
[1645860902462,0.01613692,2778.1,2777.9,0.00495909]
[1645860903361,0.01613692,2778.1,2777.5,0.00325128]
[1645860903564,0.01613692,2778.1,2777.5,0.29379709]
[1645860903761,0.01613692,2778.1,2778.0,0.06342217]
[1645860903961,0.04176675,2777.8,2777.4,0.01983935]
[1645860904161,0.04176675,2777.8,2777.5,0.29514281]
[1645860904818,0.04176675,2777.8,2777.3,0.29839409]
[1645860905018,0.04176675,2777.8,2777.4,1.63951354]
[1645860905221,0.04176675,2777.8,2777.5,0.29514281]
[1645860906022,0.04176675,2777.8,2777.5,0.3001022]
[1645860906226,0.04176675,2777.8,2777.6,0.29514281]
[1645860907222,0.04176675,2777.8,2777.7,0.29514281]
[1645860908464,0.04176675,2777.8,2777.6,0.00495931]
[1645860908666,0.04176675,2777.8,2777.7,0.29514281]
[1645860909265,0.05807998,2777.8,2777.7,0.29514281]
[1645860909667,0.05807998,2777.8,2777.6,0.00495931]
[1645860909866,0.05807998,2777.8,2777.7,0.29514281]
[1645860910968,0.05807998,2777.8,2777.6,0.00495931]
[1645860911168,0.05807998,2777.8,2777.7,0.29514281]
[1645860912216,3.65807998,2777.8,2777.7,0.29514281]
[1645860913422,3.65807998,2777.8,2777.6,0.00495931]
[1645860913618,3.65807998,2777.8,2777.7,0.29514281]
[1645860918868,14.59807998,2777.8,2777.7,0.29514281]
[1645860919070,14.59807998,2777.8,2777.1,0.00325128]
[1645860919071,15.80281726,2777.8,2777.1,0.00325128]
[1645860919329,12.14473728,2777.7,2777.6,0.00495931]
[1645860920316,12.14473728,2777.7,2777.2,0.00325128]
[1645860920617,12.14473728,2777.6,2777.5,0.00495939]
[1645860921217,13.14473728,2777.6,2777.5,0.00133271]
[1645860921519,16.64473728,2777.6,2777.2,0.00325128]
[1645860921716,10.94,2777.4,2776.9,0.00325128]
[1645860921921,10.94,2777.3,2776.8,0.2955715]
[1645860922121,11.94,2777.4,2776.8,0.2955715]
[1645860922320,15.64340662,2777.3,2776.9,0.2955715]
[1645860922521,10.94,2777.3,2777.0,0.2955715]
[1645860922724,1.20388973,2777.2,2776.6,1.1449]
[1645860922921,3.5,2777.1,2776.7,0.29877291]
[1645860923162,14.44,2777.2,2776.7,0.29552163]
[1645860923659,15.44,2777.2,2776.7,0.29552163]
[1645860923863,11.94,2777.2,2776.7,0.29552163]
[1645860924464,1.20445871,2777.1,2776.7,0.29552163]
[1645860924864,4.5,2777.3,2776.7,0.29552163]
[1645860925064,4.5,2777.3,2776.8,0.29552163]
[1645860925065,1.20343821,2777.2,2776.8,0.29552163]
[1645860925273,0.47545861,2776.6,2776.5,0.00325128]
[1645860925470,12.61889682,2776.6,2776.3,0.01984314]
[1645860925666,1.20343821,2776.5,2776.3,0.01984314]
[1645860925866,12.14343821,2776.5,2776.3,0.01984314]
[1645860926065,1.6455076,2776.6,2776.3,0.01984314]
[1645860926066,12.14343821,2776.4,2776.3,0.01984314]
[1645860926265,12.14343821,2776.4,2775.7,1.22789025]